[Event "European Women's Chess Championship (1-48)"]
[Site "Batumi, Georgia"]
[Date "2026.05.25"]
[Round "1.12"]
[White "Berke, Ana"]
[Black "Badelka, Olga"]
[Result "0-1"]
[TimeControl "90min/ 40moves+ 30min+ 30-sec increment from move 1"]
[WhiteTitle "-"]
[BlackTitle "-"]
[WhiteFideId "14510359"]
[BlackFideId "13509926"]
[WhiteElo "2164"]
[BlackElo "2392"]

1. e4 {[%clk 01:30:51]} {[%emt 00:00:08]} e6 {[%clk 01:30:55]} {[%emt
00:00:05]} 2. d3 {[%clk 01:30:16]} {[%emt 00:01:05]} c5 {[%clk 01:29:26]}
{[%emt 00:02:00]} 3. Nf3 {[%clk 01:29:41]} {[%emt 00:01:05]} Nc6 {[%clk
01:29:41]} {[%emt 00:00:15]} 4. Qe2 {[%clk 01:29:12]} {[%emt 00:00:58]} d6
{[%clk 01:25:40]} {[%emt 00:04:31]} 5. g3 {[%clk 01:28:19]} {[%emt 00:01:23]}
Nf6 {[%clk 01:24:11]} {[%emt 00:02:00]} 6. Bg2 {[%clk 01:28:16]} {[%emt
00:00:33]} e5 {[%clk 01:24:01]} {[%emt 00:00:40]} 7. c3 {[%clk 01:25:27]}
{[%emt 00:03:19]} Be7 {[%clk 01:22:14]} {[%emt 00:02:17]} 8. O-O {[%clk
01:25:04]} {[%emt 00:00:53]} O-O {[%clk 01:22:28]} {[%emt 00:00:16]} 9. Rd1
{[%clk 01:22:23]} {[%emt 00:03:10]} Qc7 {[%clk 01:18:01]} {[%emt 00:04:57]} 10.
Na3 {[%clk 01:21:06]} {[%emt 00:01:47]} Re8 {[%clk 01:14:52]} {[%emt 00:03:39]}
11. Nc2 {[%clk 01:17:01]} {[%emt 00:04:35]} h6 {[%clk 01:06:54]} {[%emt
00:08:28]} 12. h3 {[%clk 01:10:39]} {[%emt 00:06:52]} Be6 {[%clk 00:57:22]}
{[%emt 00:10:02]} 13. Nh4 {[%clk 01:02:36]} {[%emt 00:08:32]} d5 {[%clk
00:52:33]} {[%emt 00:05:20]} 14. Ne3 {[%clk 01:00:07]} {[%emt 00:02:58]} Rad8
{[%clk 00:51:13]} {[%emt 00:01:51]} 15. Bd2 {[%clk 00:55:55]} {[%emt 00:04:42]}
Bf8 {[%clk 00:46:55]} {[%emt 00:04:48]} 16. Nhf5 {[%clk 00:52:17]} {[%emt
00:04:07]} d4 {[%clk 00:43:21]} {[%emt 00:04:05]} 17. Ng4 {[%clk 00:51:09]}
{[%emt 00:01:38]} Nxg4 {[%clk 00:41:21]} {[%emt 00:02:30]} 18. hxg4 {[%clk
00:49:36]} {[%emt 00:02:02]} Qd7 {[%clk 00:26:24]} {[%emt 00:15:27]} 19. c4
{[%clk 00:46:17]} {[%emt 00:03:49]} f6 {[%clk 00:23:39]} {[%emt 00:03:15]} 20.
Bf3 {[%clk 00:42:45]} {[%emt 00:04:00]} a6 {[%clk 00:22:46]} {[%emt 00:01:24]}
21. Kg2 {[%clk 00:40:40]} {[%emt 00:02:35]} b5 {[%clk 00:22:47]} {[%emt
00:00:30]} 22. b3 {[%clk 00:40:30]} {[%emt 00:00:40]} Rb8 {[%clk 00:22:17]}
{[%emt 00:00:59]} 23. Rh1 {[%clk 00:24:26]} {[%emt 00:16:34]} bxc4 {[%clk
00:19:40]} {[%emt 00:03:07]} 24. dxc4 {[%clk 00:23:36]} {[%emt 00:01:20]} a5
{[%clk 00:17:14]} {[%emt 00:02:56]} 25. g5 {[%clk 00:17:05]} {[%emt 00:07:01]}
fxg5 {[%clk 00:17:29]} {[%emt 00:00:15]} 26. Bh5 {[%clk 00:17:11]} {[%emt
00:00:24]} Bxf5 {[%clk 00:11:41]} {[%emt 00:06:18]} 27. Bxe8 {[%clk 00:12:06]}
{[%emt 00:05:35]} Rxe8 {[%clk 00:12:08]} {[%emt 00:00:03]} 28. exf5 {[%clk
00:12:29]} {[%emt 00:00:06]} Qxf5 {[%clk 00:07:09]} {[%emt 00:05:30]} 29. Qf3
{[%clk 00:11:57]} {[%emt 00:01:01]} Qxf3+ {[%clk 00:04:29]} {[%emt 00:03:11]}
30. Kxf3 {[%clk 00:12:21]} {[%emt 00:00:06]} e4+ {[%clk 00:04:57]} {[%emt
00:00:02]} 31. Kg2 {[%clk 00:12:11]} {[%emt 00:00:40]} g6 {[%clk 00:04:19]}
{[%emt 00:01:09]} 32. Rad1 {[%clk 00:11:02]} {[%emt 00:01:39]} Bg7 {[%clk
00:04:23]} {[%emt 00:00:26]} 33. Rhe1 {[%clk 00:11:01]} {[%emt 00:00:31]} Kf7
{[%clk 00:04:06]} {[%emt 00:00:47]} 34. Bc1 {[%clk 00:10:58]} {[%emt 00:00:33]}
Nb4 {[%clk 00:02:49]} {[%emt 00:01:46]} 35. Bd2 {[%clk 00:08:49]} {[%emt
00:02:40]} Nc6 {[%clk 00:02:22]} {[%emt 00:00:57]} 36. Bc1 {[%clk 00:09:03]}
{[%emt 00:00:16]} Nb4 {[%clk 00:02:07]} {[%emt 00:00:46]} 37. Bd2 {[%clk
00:09:29]} {[%emt 00:00:04]} g4 {[%clk 00:02:04]} {[%emt 00:00:33]} 38. Bf4
{[%clk 00:07:48]} {[%emt 00:02:11]} Nc2 {[%clk 00:01:22]} {[%emt 00:01:11]} 39.
Re2 {[%clk 00:04:53]} {[%emt 00:03:25]} d3 {[%clk 00:00:53]} {[%emt 00:01:00]}
40. Rxc2 {[%clk 00:04:26]} {[%emt 00:00:57]} dxc2 {[%clk 00:01:21]} {[%emt
00:00:02]} 41. Rc1 {[%clk 00:04:29]} {[%emt 00:00:26]} h5 {[%clk 00:26:33]}
{[%emt 00:05:19]} 42. Rxc2 {[%clk 00:31:51]} {[%emt 00:03:07]} Bd4 {[%clk
00:26:18]} {[%emt 00:00:45]} 43. Re2 {[%clk 00:28:40]} {[%emt 00:03:41]} a4
{[%clk 00:25:04]} {[%emt 00:01:45]} 44. bxa4 {[%clk 00:17:26]} {[%emt
00:11:43]} Ra8 {[%clk 00:25:30]} {[%emt 00:00:03]} 45. Rxe4 {[%clk 00:16:16]}
{[%emt 00:01:40]} Rxa4 {[%clk 00:25:52]} {[%emt 00:00:08]} 46. Be3 {[%clk
00:14:07]} {[%emt 00:02:36]} Rxc4 {[%clk 00:16:08]} {[%emt 00:10:17]} 47. Kf1
{[%clk 00:13:05]} {[%emt 00:01:33]} Ra4 {[%clk 00:15:50]} {[%emt 00:00:48]} 48.
a3 {[%clk 00:10:12]} {[%emt 00:03:23]} Kf6 {[%clk 00:15:27]} {[%emt 00:00:53]}
49. Bc1 {[%clk 00:08:05]} {[%emt 00:02:36]} Rc4 {[%clk 00:12:13]} {[%emt
00:03:45]} 50. Bd2 {[%clk 00:07:41]} {[%emt 00:00:54]} Rc2 {[%clk 00:11:05]}
{[%emt 00:01:38]} 51. Be3 {[%clk 00:07:14]} {[%emt 00:00:58]} Kf5 {[%clk
00:10:17]} {[%emt 00:01:18]} 52. Re8 {[%clk 00:07:39]} {[%emt 00:00:05]} Ra2
{[%clk 00:08:37]} {[%emt 00:02:09]} 53. Bxd4 {[%clk 00:07:12]} {[%emt
00:00:58]} cxd4 {[%clk 00:09:04]} {[%emt 00:00:03]} 54. Ra8 {[%clk 00:07:34]}
{[%emt 00:00:08]} Ke4 {[%clk 00:07:14]} {[%emt 00:02:19]} 55. a4 {[%clk
00:07:02]} {[%emt 00:01:02]} d3 {[%clk 00:02:59]} {[%emt 00:04:46]} 56. Ke1
{[%clk 00:07:28]} {[%emt 00:00:03]} Kf3 {[%clk 00:02:47]} {[%emt 00:00:43]} 57.
Rf8+ {[%clk 00:06:06]} {[%emt 00:01:53]} Kg2 {[%clk 00:03:10]} {[%emt
00:00:06]} 58. Rf4 {[%clk 00:05:13]} {[%emt 00:01:23]} g5 {[%clk 00:03:14]}
{[%emt 00:00:27]} 59. Rd4 {[%clk 00:04:42]} {[%emt 00:01:01]} Re2+ {[%clk
00:02:17]} {[%emt 00:01:27]} 60. Kd1 {[%clk 00:05:05]} {[%emt 00:00:07]} Rxf2
{[%clk 00:02:41]} {[%emt 00:00:07]} 61. Rxd3 {[%clk 00:05:30]} {[%emt
00:00:05]} h4 {[%clk 00:02:26]} {[%emt 00:00:45]} 62. a5 {[%clk 00:05:37]}
{[%emt 00:00:23]} h3 {[%clk 00:02:16]} {[%emt 00:00:40]} 0-1

[Event "European Women's Chess Championship (1-48)"]
[Site "Batumi, Georgia"]
[Date "2026.05.25"]
[Round "1.13"]
[White "Buksa, Nataliya"]
[Black "Gueci, Tea"]
[Result "1/2-1/2"]
[TimeControl "90min/ 40moves+ 30min+ 30-sec increment from move 1"]
[WhiteTitle "-"]
[BlackTitle "-"]
[WhiteFideId "14123622"]
[BlackFideId "872342"]
[WhiteElo "2392"]
[BlackElo "2160"]

1. e4 {[%clk 01:30:58]} {[%emt 00:00:02]} c5 {[%clk 01:30:58]} {[%emt
00:00:03]} 2. Nf3 {[%clk 01:31:21]} {[%emt 00:00:07]} Nc6 {[%clk 01:31:24]}
{[%emt 00:00:04]} 3. Bb5 {[%clk 01:31:47]} {[%emt 00:00:04]} e5 {[%clk
01:31:49]} {[%emt 00:00:03]} 4. O-O {[%clk 01:31:58]} {[%emt 00:00:20]} Bd6
{[%clk 01:32:09]} {[%emt 00:00:10]} 5. d3 {[%clk 01:32:04]} {[%emt 00:00:25]}
Nf6 {[%clk 01:32:31]} {[%emt 00:00:08]} 6. a4 {[%clk 01:27:51]} {[%emt
00:04:43]} a6 {[%clk 01:27:23]} {[%emt 00:05:38]} 7. Bc4 {[%clk 01:28:17]}
{[%emt 00:00:04]} O-O {[%clk 01:27:21]} {[%emt 00:00:32]} 8. Nc3 {[%clk
01:24:38]} {[%emt 00:04:09]} Be7 {[%clk 01:26:32]} {[%emt 00:01:19]} 9. Bg5
{[%clk 01:19:00]} {[%emt 00:06:08]} d6 {[%clk 01:25:52]} {[%emt 00:01:09]} 10.
h3 {[%clk 01:15:03]} {[%emt 00:04:27]} Be6 {[%clk 01:16:07]} {[%emt 00:10:16]}
11. Bxf6 {[%clk 01:09:46]} {[%emt 00:05:47]} Bxf6 {[%clk 01:16:06]} {[%emt
00:00:30]} 12. Nd5 {[%clk 01:10:05]} {[%emt 00:00:12]} Rb8 {[%clk 01:12:35]}
{[%emt 00:04:00]} 13. Qd2 {[%clk 01:04:23]} {[%emt 00:06:12]} b5 {[%clk
00:58:48]} {[%emt 00:14:17]} 14. axb5 {[%clk 01:04:07]} {[%emt 00:00:47]} axb5
{[%clk 00:59:14]} {[%emt 00:00:05]} 15. Bb3 {[%clk 01:04:34]} {[%emt 00:00:02]}
Bxd5 {[%clk 00:54:02]} {[%emt 00:05:42]} 16. Bxd5 {[%clk 01:04:45]} {[%emt
00:00:20]} Ne7 {[%clk 00:52:26]} {[%emt 00:02:05]} 17. Bb3 {[%clk 01:04:04]}
{[%emt 00:01:11]} Qc7 {[%clk 00:43:36]} {[%emt 00:09:19]} 18. c4 {[%clk
00:43:39]} {[%emt 00:20:56]} bxc4 {[%clk 00:27:39]} {[%emt 00:16:26]} 19. Bxc4
{[%clk 00:43:50]} {[%emt 00:00:20]} Qb7 {[%clk 00:27:55]} {[%emt 00:00:14]} 20.
Ra6 {[%clk 00:40:04]} {[%emt 00:04:16]} Rfd8 {[%clk 00:25:41]} {[%emt
00:02:43]} 21. Rfa1 {[%clk 00:38:04]} {[%emt 00:02:30]} Qxb2 {[%clk 00:15:51]}
{[%emt 00:10:20]} 22. Qe3 {[%clk 00:29:50]} {[%emt 00:08:46]} h6 {[%clk
00:15:45]} {[%emt 00:00:36]} 23. h4 {[%clk 00:29:11]} {[%emt 00:01:08]} Qc2
{[%clk 00:13:30]} {[%emt 00:02:45]} 24. Qe1 {[%clk 00:26:27]} {[%emt 00:03:14]}
Qb2 {[%clk 00:12:27]} {[%emt 00:01:33]} 25. g3 {[%clk 00:26:14]} {[%emt
00:00:43]} d5 {[%clk 00:11:27]} {[%emt 00:01:29]} 26. exd5 {[%clk 00:21:28]}
{[%emt 00:05:16]} Nxd5 {[%clk 00:11:56]} {[%emt 00:00:01]} 27. Qe4 {[%clk
00:20:54]} {[%emt 00:01:04]} Nb6 {[%clk 00:10:59]} {[%emt 00:01:27]} 28. R6a2
{[%clk 00:10:29]} {[%emt 00:10:55]} Qb4 {[%clk 00:10:26]} {[%emt 00:01:03]} 29.
Rc2 {[%clk 00:10:56]} {[%emt 00:00:05]} Nxc4 {[%clk 00:10:22]} {[%emt
00:00:33]} 30. Rxc4 {[%clk 00:11:23]} {[%emt 00:00:03]} Qb2 {[%clk 00:09:00]}
{[%emt 00:01:52]} 31. Rac1 {[%clk 00:09:54]} {[%emt 00:01:59]} Rb4 {[%clk
00:09:17]} {[%emt 00:00:13]} 32. Re1 {[%clk 00:07:51]} {[%emt 00:02:33]} Qb3
{[%clk 00:06:28]} {[%emt 00:03:20]} 33. Re3 {[%clk 00:07:31]} {[%emt 00:00:49]}
Rxc4 {[%clk 00:04:43]} {[%emt 00:02:14]} 34. dxc4 {[%clk 00:07:51]} {[%emt
00:00:11]} Rd1+ {[%clk 00:03:21]} {[%emt 00:01:52]} 35. Kg2 {[%clk 00:08:10]}
{[%emt 00:00:11]} Qb1 {[%clk 00:03:06]} {[%emt 00:00:45]} 36. Qxb1 {[%clk
00:06:33]} {[%emt 00:02:07]} Rxb1 {[%clk 00:03:34]} {[%emt 00:00:01]} 37. Nxe5
{[%clk 00:07:00]} {[%emt 00:00:04]} Rb7 {[%clk 00:01:48]} {[%emt 00:02:16]} 38.
f4 {[%clk 00:06:44]} {[%emt 00:00:45]} g6 {[%clk 00:01:12]} {[%emt 00:01:06]}
39. Kf3 {[%clk 00:06:23]} {[%emt 00:00:52]} Rb4 {[%clk 00:01:06]} {[%emt
00:00:36]} 40. Ke4 {[%clk 00:06:34]} {[%emt 00:00:19]} Bxe5 {[%clk 00:00:32]}
{[%emt 00:01:04]} 41. Kxe5 {[%clk 00:06:58]} {[%emt 00:00:06]} Rxc4 {[%clk
00:27:43]} {[%emt 00:03:18]} 42. Kf6 {[%clk 00:36:53]} {[%emt 00:00:35]} Ra4
{[%clk 00:26:28]} {[%emt 00:01:45]} 43. Re8+ {[%clk 00:36:55]} {[%emt
00:00:28]} Kh7 {[%clk 00:26:50]} {[%emt 00:00:09]} 44. Kxf7 {[%clk 00:37:03]}
{[%emt 00:00:21]} Ra7+ {[%clk 00:19:54]} {[%emt 00:07:26]} 45. Kf6 {[%clk
00:36:21]} {[%emt 00:01:13]} Ra6+ {[%clk 00:14:13]} {[%emt 00:06:10]} 46. Ke5
{[%clk 00:27:29]} {[%emt 00:09:22]} Ra3 {[%clk 00:14:37]} {[%emt 00:00:06]} 47.
Re7+ {[%clk 00:27:32]} {[%emt 00:00:28]} Kg8 {[%clk 00:13:10]} {[%emt
00:01:57]} 48. Rc7 {[%clk 00:27:00]} {[%emt 00:01:02]} Rxg3 {[%clk 00:13:05]}
{[%emt 00:00:35]} 49. Rxc5 {[%clk 00:27:26]} {[%emt 00:00:04]} h5 {[%clk
00:10:43]} {[%emt 00:02:52]} 50. Kf6 {[%clk 00:25:38]} {[%emt 00:02:17]} Rg4
{[%clk 00:10:37]} {[%emt 00:00:36]} 51. Rc7 {[%clk 00:25:25]} {[%emt 00:00:43]}
Rxh4 {[%clk 00:08:32]} {[%emt 00:02:35]} 52. Kxg6 {[%clk 00:25:52]} {[%emt
00:00:04]} Rxf4 {[%clk 00:08:50]} {[%emt 00:00:12]} 53. Rc8+ {[%clk 00:26:17]}
{[%emt 00:00:05]} Rf8 {[%clk 00:09:16]} {[%emt 00:00:03]} 54. Rxf8+ {[%clk
00:26:43]} {[%emt 00:00:05]} Kxf8 {[%clk 00:09:43]} {[%emt 00:00:03]} 55. Kxh5
{[%emt 00:00:02]} 1/2-1/2

[Event "European Women's Chess Championship (1-48)"]
[Site "Batumi, Georgia"]
[Date "2026.05.25"]
[Round "1.14"]
[White "Khachatryan, Anna"]
[Black "Danielian, Elina"]
[Result "1/2-1/2"]
[TimeControl "90min/ 40moves+ 30min+ 30-sec increment from move 1"]
[WhiteTitle "-"]
[BlackTitle "-"]
[WhiteFideId "13310780"]
[BlackFideId "13300210"]
[WhiteElo "2154"]
[BlackElo "2390"]

1. e4 {[%clk 01:30:55]} {[%emt 00:00:03]} d6 {[%clk 01:30:11]} {[%emt
00:00:50]} 2. d4 {[%clk 01:31:14]} {[%emt 00:00:12]} g6 {[%clk 01:30:22]}
{[%emt 00:00:19]} 3. Nc3 {[%clk 01:24:31]} {[%emt 00:07:12]} Bg7 {[%clk
01:30:46]} {[%emt 00:00:06]} 4. Bg5 {[%clk 01:24:08]} {[%emt 00:00:53]} c6
{[%clk 01:30:38]} {[%emt 00:00:38]} 5. Qd2 {[%clk 01:23:26]} {[%emt 00:01:13]}
b5 {[%clk 01:29:49]} {[%emt 00:01:19]} 6. Nf3 {[%clk 01:13:01]} {[%emt
00:10:54]} Nf6 {[%clk 01:15:30]} {[%emt 00:14:48]} 7. Bd3 {[%clk 01:07:07]}
{[%emt 00:06:25]} h6 {[%clk 01:13:11]} {[%emt 00:02:50]} 8. Be3 {[%clk
00:59:37]} {[%emt 00:08:00]} Qc7 {[%clk 01:12:40]} {[%emt 00:01:00]} 9. h3
{[%clk 00:38:02]} {[%emt 00:22:06]} Nbd7 {[%clk 01:12:15]} {[%emt 00:00:54]} 10.
O-O {[%clk 00:34:18]} {[%emt 00:04:14]} e5 {[%clk 00:54:14]} {[%emt 00:18:31]}
11. dxe5 {[%clk 00:26:05]} {[%emt 00:08:43]} dxe5 {[%clk 00:54:39]} {[%emt
00:00:06]} 12. a3 {[%clk 00:15:30]} {[%emt 00:11:05]} a6 {[%clk 00:54:52]}
{[%emt 00:00:16]} 13. Rfd1 {[%clk 00:05:55]} {[%emt 00:10:05]} Bb7 {[%clk
00:55:06]} {[%emt 00:00:15]} 14. b4 {[%clk 00:03:15]} {[%emt 00:03:11]} Rd8
{[%clk 00:53:31]} {[%emt 00:02:05]} 15. a4 {[%clk 00:01:17]} {[%emt 00:02:28]}
Kf8 {[%clk 00:39:38]} {[%emt 00:14:23]} 16. Ne2 {[%clk 00:00:37]} {[%emt
00:01:10]} Kg8 {[%clk 00:39:40]} {[%emt 00:00:28]} 17. Qc3 {[%clk 00:00:34]}
{[%emt 00:00:34]} Rc8 {[%clk 00:39:42]} {[%emt 00:00:27]} 18. Ng3 {[%clk
00:00:34]} {[%emt 00:00:31]} Kh7 {[%clk 00:39:50]} {[%emt 00:00:21]} 19. Qb3
{[%clk 00:00:44]} {[%emt 00:00:20]} Rhf8 {[%clk 00:38:49]} {[%emt 00:01:30]} 20.
c4 {[%clk 00:01:05]} {[%emt 00:00:10]} bxa4 {[%clk 00:26:50]} {[%emt 00:12:30]}
21. Qxa4 {[%clk 00:01:17]} {[%emt 00:00:18]} c5 {[%clk 00:26:57]} {[%emt
00:00:22]} 22. b5 {[%clk 00:00:38]} {[%emt 00:01:09]} Ra8 {[%clk 00:25:46]}
{[%emt 00:01:41]} 23. Qa5 {[%clk 00:00:38]} {[%emt 00:00:31]} Qxa5 {[%clk
00:25:49]} {[%emt 00:00:26]} 24. Rxa5 {[%clk 00:01:07]} axb5 {[%clk 00:26:14]}
{[%emt 00:00:05]} 25. Rxb5 {[%clk 00:01:29]} {[%emt 00:00:08]} Bc6 {[%clk
00:26:32]} {[%emt 00:00:12]} 26. Rb2 {[%clk 00:00:49]} {[%emt 00:01:10]} Ra3
{[%clk 00:25:46]} {[%emt 00:01:15]} 27. Ne1 {[%clk 00:00:56]} {[%emt 00:00:24]}
Rfa8 {[%clk 00:22:57]} {[%emt 00:03:19]} 28. f3 {[%clk 00:01:14]} {[%emt
00:00:12]} Ne8 {[%clk 00:21:28]} {[%emt 00:01:59]} 29. Nc2 {[%clk 00:01:21]}
{[%emt 00:00:23]} R3a7 {[%clk 00:20:07]} {[%emt 00:01:51]} 30. Ne2 {[%clk
00:01:35]} {[%emt 00:00:16]} Nc7 {[%clk 00:20:29]} {[%emt 00:00:08]} 31. Nc3
{[%clk 00:01:52]} {[%emt 00:00:14]} Ne6 {[%clk 00:20:55]} {[%emt 00:00:04]} 32.
Nd5 {[%clk 00:01:34]} {[%emt 00:00:47]} h5 {[%clk 00:20:43]} {[%emt 00:00:42]}
33. Bf2 {[%clk 00:00:54]} {[%emt 00:01:10]} Bh6 {[%emt 00:00:54]} 34. Rdb1
{[%clk 00:00:44]} Kg7 {[%clk 00:20:00]} {[%emt 00:01:28]} 35. Bf1 {[%clk
00:00:39]} {[%emt 00:00:36]} Nd4 {[%clk 00:17:31]} {[%emt 00:02:59]} 36. Ne1
{[%clk 00:00:49]} {[%emt 00:00:20]} Ra2 {[%clk 00:14:14]} {[%emt 00:03:47]} 37.
Rxa2 {[%clk 00:00:39]} {[%emt 00:00:40]} Rxa2 {[%clk 00:14:39]} {[%emt
00:00:05]} 38. Nd3 {[%clk 00:00:36]} {[%emt 00:00:34]} Ra6 {[%clk 00:07:39]}
{[%emt 00:07:29]} 39. Ne7 {[%clk 00:00:37]} {[%emt 00:00:29]} Ba4 {[%clk
00:05:41]} {[%emt 00:02:28]} 40. Ne1 {[%clk 00:00:34]} {[%emt 00:00:34]} Bd2
{[%clk 00:03:59]} {[%emt 00:02:11]} 41. Nd5 {[%clk 00:26:33]} {[%emt 00:04:31]}
f6 {[%clk 00:18:41]} {[%emt 00:15:48]} 42. Nd3 {[%clk 00:14:45]} {[%emt
00:12:18]} Kf7 {[%clk 00:04:09]} {[%emt 00:15:02]} 43. Ra1 {[%clk 00:08:47]}
{[%emt 00:06:28]} Ra5 {[%clk 00:02:52]} {[%emt 00:01:47]} 44. Nb2 {[%clk
00:02:58]} {[%emt 00:06:19]} Bb3 {[%clk 00:02:34]} {[%emt 00:00:47]} 45. Rxa5
{[%clk 00:03:23]} {[%emt 00:00:07]} Bxa5 {[%clk 00:03:01]} {[%emt 00:00:02]} 46.
Be3 {[%clk 00:02:00]} {[%emt 00:01:52]} Nb8 {[%clk 00:01:35]} {[%emt 00:01:57]}
47. Nd3 {[%clk 00:01:25]} {[%emt 00:01:05]} Na6 {[%clk 00:01:36]} {[%emt
00:00:28]} 48. Nc1 {[%clk 00:00:58]} {[%emt 00:00:58]} Bc2 {[%clk 00:01:51]}
{[%emt 00:00:14]} 49. Bd3 {[%clk 00:00:48]} {[%emt 00:00:41]} Ba4 {[%clk
00:02:15]} {[%emt 00:00:06]} 50. Kf2 {[%clk 00:01:01]} {[%emt 00:00:18]} Ke6
{[%clk 00:01:59]} {[%emt 00:00:45]} 51. Bb1 {[%clk 00:00:42]} {[%emt 00:00:49]}
h4 {[%emt 00:00:42]} 52. Bd3 {[%clk 00:00:51]} Nb4 {[%clk 00:02:12]} {[%emt
00:00:27]} 53. Bf1 {[%clk 00:00:41]} {[%emt 00:00:39]} Bc2 {[%clk 00:01:14]}
{[%emt 00:01:28]} 54. Be2 {[%clk 00:00:39]} {[%emt 00:00:32]} Nxd5 {[%clk
00:00:43]} {[%emt 00:01:01]} 55. cxd5+ {[%clk 00:00:46]} {[%emt 00:00:24]} Kd6
{[%clk 00:01:06]} {[%emt 00:00:07]} 56. Bc4 {[%clk 00:00:40]} {[%emt 00:00:36]}
f5 {[%clk 00:00:39]} {[%emt 00:00:57]} 57. Nd3 {[%clk 00:00:37]} {[%emt
00:00:33]} f4 {[%clk 00:00:37]} {[%emt 00:00:31]} 58. Bxd4 {[%clk 00:00:34]}
{[%emt 00:00:34]} cxd4 {[%clk 00:01:06]} {[%emt 00:00:01]} 59. Ke2 {[%clk
00:00:41]} {[%emt 00:00:23]} Bc3 {[%clk 00:01:23]} {[%emt 00:00:12]} 60. Ba6
{[%clk 00:00:38]} {[%emt 00:00:32]} g5 {[%clk 00:01:45]} {[%emt 00:00:08]} 61.
Nf2 {[%clk 00:00:36]} {[%emt 00:00:33]} Ba5 {[%clk 00:01:58]} {[%emt 00:00:17]}
62. Nd3 {[%clk 00:00:42]} {[%emt 00:00:23]} Bb3 {[%clk 00:01:43]} {[%emt
00:00:45]} 63. Nf2 {[%clk 00:00:46]} {[%emt 00:00:27]} Bb6 {[%clk 00:01:55]}
{[%emt 00:00:18]} 64. Kd3 {[%clk 00:00:43]} {[%emt 00:00:33]} Kc5 {[%clk
00:01:00]} {[%emt 00:01:26]} 65. Ng4 {[%clk 00:01:06]} {[%emt 00:00:07]} Bc7
{[%clk 00:01:29]} {[%emt 00:00:01]} 66. Nh6 {[%clk 00:01:05]} {[%emt 00:00:30]}
Bd8 {[%clk 00:01:31]} {[%emt 00:00:26]} 67. Ng4 {[%clk 00:01:09]} {[%emt
00:00:28]} Bc7 {[%clk 00:01:17]} {[%emt 00:00:44]} 68. Nh6 {[%clk 00:01:34]}
{[%emt 00:00:04]} Bd8 {[%clk 00:00:55]} {[%emt 00:00:51]} 69. Ng4 {[%clk
00:01:54]} {[%emt 00:00:11]} Bc7 {[%clk 00:01:03]} {[%emt 00:00:22]} 1/2-1/2

[Event "European Women's Chess Championship (1-48)"]
[Site "Batumi, Georgia"]
[Date "2026.05.25"]
[Round "1.15"]
[White "Maltsevskaya, Aleksandra"]
[Black "Huseynova, Lala"]
[Result "1/2-1/2"]
[TimeControl "90min/ 40moves+ 30min+ 30-sec increment from move 1"]
[WhiteTitle "-"]
[BlackTitle "-"]
[WhiteFideId "24174041"]
[BlackFideId "13431781"]
[WhiteElo "2390"]
[BlackElo "2149"]

1. Nf3 {[%clk 01:30:56]} {[%emt 00:00:03]} d5 {[%clk 01:30:18]} {[%emt
00:00:43]} 2. c4 {[%clk 01:31:10]} {[%emt 00:00:17]} c6 {[%clk 01:25:12]}
{[%emt 00:05:36]} 3. b3 {[%clk 01:30:51]} {[%emt 00:00:48]} Nf6 {[%clk
01:24:24]} {[%emt 00:01:18]} 4. g3 {[%clk 01:31:10]} {[%emt 00:00:11]} Bg4
{[%clk 01:23:49]} {[%emt 00:01:05]} 5. Bg2 {[%clk 01:31:04]} {[%emt 00:00:37]}
Nbd7 {[%clk 01:23:02]} {[%emt 00:01:16]} 6. Bb2 {[%clk 01:31:18]} {[%emt
00:00:15]} e6 {[%clk 01:22:08]} {[%emt 00:01:25]} 7. O-O {[%clk 01:31:34]}
{[%emt 00:00:13]} Be7 {[%clk 01:20:46]} {[%emt 00:01:54]} 8. d4 {[%clk
01:31:01]} {[%emt 00:01:02]} O-O {[%emt 00:02:36]} 9. Nc3 {[%clk 01:31:24]} Bd6
{[%clk 01:13:22]} {[%emt 00:05:54]} 10. Nd2 {[%clk 01:23:47]} {[%emt 00:08:07]}
h6 {[%clk 01:07:39]} {[%emt 00:06:14]} 11. h3 {[%clk 01:18:31]} {[%emt
00:05:46]} Bf5 {[%clk 01:04:36]} {[%emt 00:03:33]} 12. e4 {[%clk 01:18:25]}
{[%emt 00:00:35]} dxe4 {[%clk 01:03:43]} {[%emt 00:01:24]} 13. Ndxe4 {[%clk
01:18:48]} {[%emt 00:00:07]} Nxe4 {[%clk 00:58:24]} {[%emt 00:05:50]} 14. Nxe4
{[%clk 01:19:10]} {[%emt 00:00:07]} Bxe4 {[%clk 00:57:17]} {[%emt 00:01:37]} 15.
Bxe4 {[%clk 01:15:48]} {[%emt 00:03:52]} Qe7 {[%clk 00:55:05]} {[%emt
00:02:43]} 16. a4 {[%clk 01:08:53]} {[%emt 00:07:24]} f5 {[%clk 00:49:41]}
{[%emt 00:05:54]} 17. Bg2 {[%clk 01:06:05]} {[%emt 00:03:17]} f4 {[%clk
00:44:50]} {[%emt 00:05:22]} 18. Qd3 {[%clk 01:00:55]} {[%emt 00:05:40]} Qg5
{[%clk 00:41:49]} {[%emt 00:03:31]} 19. h4 {[%clk 00:49:43]} {[%emt 00:11:41]}
Qg4 {[%clk 00:38:55]} {[%emt 00:03:16]} 20. Bf3 {[%clk 00:49:52]} {[%emt
00:00:30]} Qh3 {[%clk 00:38:09]} {[%emt 00:01:15]} 21. Bg2 {[%clk 00:39:54]}
{[%emt 00:10:28]} Qg4 {[%clk 00:38:13]} {[%emt 00:00:26]} 22. Bf3 {[%clk
00:37:23]} {[%emt 00:03:02]} Qh3 {[%clk 00:38:36]} {[%emt 00:00:07]} 23. Bg2
{[%clk 00:37:49]} {[%emt 00:00:04]} Qg4 {[%emt 00:02:24]} 1/2-1/2